[Event "Late-Titled-Tuesday-Blitz-February-20-2024"]
[Site "Chess.com"]
[Date "2024.02.20"]
[Round "4"]
[White "MeisterJabo"]
[Black "Abund"]
[Result "1/2-1/2"]
[WhiteElo "2436"]
[BlackElo "2789"]
[TimeControl "180+1"]
[EndTime "14:39:05 PST"]
[Termination "Game drawn by repetition"]

1. c4 {[%clk 0:03:00.9]} 1... e6 {[%clk 0:02:59.7]} 2. g3 {[%clk 0:03:01.5]}
2... d5 {[%clk 0:03:00.2]} 3. Nf3 {[%clk 0:03:02.4]} 3... Nf6 {[%clk 0:03:00.8]}
4. Bg2 {[%clk 0:03:01.9]} 4... Be7 {[%clk 0:03:01.2]} 5. O-O {[%clk 0:03:02.5]}
5... O-O {[%clk 0:03:01.7]} 6. d4 {[%clk 0:03:02.9]} 6... dxc4 {[%clk
0:02:58.9]} 7. Ne5 {[%clk 0:03:02.5]} 7... c5 {[%clk 0:02:54.5]} 8. dxc5 {[%clk
0:03:01.2]} 8... Bxc5 {[%clk 0:02:52.5]} 9. Nd2 {[%clk 0:02:44.4]} 9... c3
{[%clk 0:02:47.7]} 10. bxc3 {[%clk 0:02:43.7]} 10... Qc7 {[%clk 0:02:42]} 11.
Nd3 {[%clk 0:02:37.6]} 11... Be7 {[%clk 0:02:32.1]} 12. Rb1 {[%clk 0:02:31.3]}
12... Nc6 {[%clk 0:02:29.2]} 13. Nc4 {[%clk 0:01:54.5]} 13... Nd5 {[%clk
0:01:47.2]} 14. Qc2 {[%clk 0:01:53.2]} 14... Bf6 {[%clk 0:01:47]} 15. Bd2 {[%clk
0:01:30.5]} 15... Nde7 {[%clk 0:01:24.5]} 16. Rfd1 {[%clk 0:00:56.8]} 16... e5
{[%clk 0:01:07.7]} 17. Be3 {[%clk 0:00:48.3]} 17... Be6 {[%clk 0:01:06]} 18. Nd2
{[%clk 0:00:35.3]} 18... g6 {[%clk 0:00:54.3]} 19. Ne4 {[%clk 0:00:34.5]} 19...
Bg7 {[%clk 0:00:54.5]} 20. Bc5 {[%clk 0:00:33.7]} 20... Rad8 {[%clk 0:00:52.9]}
21. Nb4 {[%clk 0:00:24.7]} 21... Nxb4 {[%clk 0:00:39.6]} 22. Bxb4 {[%clk
0:00:23.9]} 22... Rxd1+ {[%clk 0:00:32.2]} 23. Rxd1 {[%clk 0:00:20.7]} 23... Rd8
{[%clk 0:00:31.9]} 24. Bd6 {[%clk 0:00:18]} 24... Qd7 {[%clk 0:00:23.8]} 25. Rd2
{[%clk 0:00:18.1]} 25... Qe8 {[%clk 0:00:18.2]} 26. Nc5 {[%clk 0:00:17]} 26...
Nf5 {[%clk 0:00:13.6]} 27. Nxb7 {[%clk 0:00:09.5]} 27... Rc8 {[%clk 0:00:14.1]}
28. Bb4 {[%clk 0:00:06.2]} 28... Bf8 {[%clk 0:00:03.9]} 29. Nd6 {[%clk
0:00:04.9]} 29... Nxd6 {[%clk 0:00:03.5]} 30. Bxd6 {[%clk 0:00:05.8]} 30... Bxd6
{[%clk 0:00:03.8]} 31. Rxd6 {[%clk 0:00:06.7]} 31... Qe7 {[%clk 0:00:04.2]} 32.
Qd2 {[%clk 0:00:05.8]} 32... Rxc3 {[%clk 0:00:03.2]} 33. Rxe6 {[%clk 0:00:04.1]}
33... Qc5 {[%clk 0:00:02.5]} 34. Re8+ {[%clk 0:00:03.8]} 34... Kg7 {[%clk
0:00:03.1]} 35. h4 {[%clk 0:00:04.3]} 35... Rc1+ {[%clk 0:00:03.3]} 36. Kh2
{[%clk 0:00:04.6]} 36... h5 {[%clk 0:00:03.9]} 37. e3 {[%clk 0:00:04.7]} 37...
Rc2 {[%clk 0:00:04.1]} 38. Qd8 {[%clk 0:00:03.5]} 38... Rxf2 {[%clk 0:00:03.3]}
39. Rg8+ {[%clk 0:00:03.7]} 39... Kh7 {[%clk 0:00:03.2]} 40. Rh8+ {[%clk
0:00:04]} 40... Kg7 {[%clk 0:00:03.9]} 41. Rg8+ {[%clk 0:00:04.2]} 41... Kh7
{[%clk 0:00:04.4]} 42. Rh8+ {[%clk 0:00:04]} 42... Kg7 {[%clk 0:00:05]} 43. Qg8+
{[%clk 0:00:02.4]} 43... Kf6 {[%clk 0:00:05.4]} 44. Qd8+ {[%clk 0:00:03.3]}
44... Kg7 {[%clk 0:00:05.3]} 1/2-1/2

[Event "Late-Titled-Tuesday-Blitz-February-20-2024"]
[Site "Chess.com"]
[Date "2024.02.20"]
[Round "4"]
[White "mbojan"]
[Black "Polish_fighter3000"]
[Result "1-0"]
[WhiteElo "2886"]
[BlackElo "3057"]
[TimeControl "180+1"]
[EndTime "14:39:09 PST"]
[Termination "mbojan won on time"]

1. e4 {[%clk 0:03:00.9]} 1... e5 {[%clk 0:02:58.1]} 2. Nf3 {[%clk 0:03:00.9]}
2... Nc6 {[%clk 0:02:58.8]} 3. Bb5 {[%clk 0:03:01]} 3... a6 {[%clk 0:02:58.1]}
4. Ba4 {[%clk 0:03:01.5]} 4... Nf6 {[%clk 0:02:58.7]} 5. O-O {[%clk 0:03:02]}
5... Be7 {[%clk 0:02:59.2]} 6. Re1 {[%clk 0:03:02.5]} 6... b5 {[%clk 0:02:58.8]}
7. Bb3 {[%clk 0:03:02.9]} 7... O-O {[%clk 0:02:58.1]} 8. h3 {[%clk 0:03:03.3]}
8... d6 {[%clk 0:02:52]} 9. c3 {[%clk 0:03:02.4]} 9... Nb8 {[%clk 0:02:49.9]}
10. d4 {[%clk 0:03:02.2]} 10... Nbd7 {[%clk 0:02:50.5]} 11. c4 {[%clk
0:03:02.9]} 11... c6 {[%clk 0:02:48.3]} 12. Nc3 {[%clk 0:03:02.7]} 12... h6
{[%clk 0:02:46.8]} 13. a3 {[%clk 0:03:01.9]} 13... Rb8 {[%clk 0:02:45]} 14. cxb5
{[%clk 0:02:58.6]} 14... axb5 {[%clk 0:02:43.9]} 15. Be3 {[%clk 0:02:58.8]}
15... Re8 {[%clk 0:02:42]} 16. Nh4 {[%clk 0:02:50.6]} 16... Bf8 {[%clk
0:02:30.5]} 17. Ng6 {[%clk 0:02:39.6]} 17... exd4 {[%clk 0:01:55]} 18. Bxd4
{[%clk 0:02:40.5]} 18... Nc5 {[%clk 0:01:55.4]} 19. Nxf8 {[%clk 0:02:24.7]}
19... Nxb3 {[%clk 0:01:54.4]} 20. Qxb3 {[%clk 0:02:23.5]} 20... Kxf8 {[%clk
0:01:47.3]} 21. Rad1 {[%clk 0:02:23.3]} 21... Be6 {[%clk 0:01:38.8]} 22. Qc2
{[%clk 0:02:23]} 22... b4 {[%clk 0:01:18.9]} 23. axb4 {[%clk 0:02:15.3]} 23...
Rxb4 {[%clk 0:01:19.8]} 24. Bc5 {[%clk 0:02:15.8]} 24... dxc5 {[%clk 0:01:10.7]}
25. Rxd8 {[%clk 0:02:15.2]} 25... Rxd8 {[%clk 0:01:11.6]} 26. Na4 {[%clk
0:02:08.3]} 26... Kg8 {[%clk 0:01:06.5]} 27. Nc3 {[%clk 0:01:54.1]} 27... Rbd4
{[%clk 0:00:58.3]} 28. e5 {[%clk 0:01:47.7]} 28... Nd5 {[%clk 0:00:49.9]} 29.
Ne4 {[%clk 0:01:41.8]} 29... Nb4 {[%clk 0:00:47.8]} 30. Qc3 {[%clk 0:01:42.3]}
30... Nd3 {[%clk 0:00:42.5]} 31. Re3 {[%clk 0:01:33.2]} 31... R8d5 {[%clk
0:00:38.3]} 32. Kh2 {[%clk 0:00:48.3]} 32... c4 {[%clk 0:00:35]} 33. Nd6 {[%clk
0:00:39.3]} 33... Nxf2 {[%clk 0:00:29.6]} 34. Qa3 {[%clk 0:00:33.8]} 34... Rd3
{[%clk 0:00:10.5]} 35. Qa8+ {[%clk 0:00:15.5]} 35... Kh7 {[%clk 0:00:10.9]} 36.
Re2 {[%clk 0:00:12.7]} 36... Nxh3 {[%clk 0:00:11]} 37. gxh3 {[%clk 0:00:11]}
37... Rxh3+ {[%clk 0:00:11.9]} 38. Kg2 {[%clk 0:00:11.6]} 38... Rdd3 {[%clk
0:00:12.1]} 39. Qxc6 {[%clk 0:00:08.8]} 39... Rhg3+ {[%clk 0:00:10]} 40. Kf2
{[%clk 0:00:08.8]} 40... Bd5 {[%clk 0:00:09.7]} 41. Qc5 {[%clk 0:00:07.6]} 41...
Rgf3+ {[%clk 0:00:05]} 42. Ke1 {[%clk 0:00:07.9]} 42... h5 {[%clk 0:00:04.6]}
43. Ne4 {[%clk 0:00:06.5]} 43... Bxe4 {[%clk 0:00:03.2]} 44. Rxe4 {[%clk
0:00:07.4]} 44... g5 {[%clk 0:00:02.7]} 45. e6 {[%clk 0:00:07]} 45... fxe6
{[%clk 0:00:02.6]} 46. Rxe6 {[%clk 0:00:07.9]} 46... Rf7 {[%clk 0:00:01.3]} 47.
Qxg5 {[%clk 0:00:07.7]} 1-0

[Event "Late-Titled-Tuesday-Blitz-February-20-2024"]
[Site "Chess.com"]
[Date "2024.02.20"]
[Round "4"]
[White "karinachess1"]
[Black "delqate"]
[Result "0-1"]
[WhiteElo "2657"]
[BlackElo "2533"]
[TimeControl "180+1"]
[EndTime "14:39:13 PST"]
[Termination "delqate won by resignation"]

1. d4 {[%clk 0:03:00.9]} 1... d5 {[%clk 0:02:59.3]} 2. c4 {[%clk 0:03:01]} 2...
c6 {[%clk 0:02:59.4]} 3. Nf3 {[%clk 0:03:01.1]} 3... Nf6 {[%clk 0:02:59.1]} 4.
g3 {[%clk 0:03:01.7]} 4... g6 {[%clk 0:02:55.8]} 5. b3 {[%clk 0:03:01.5]} 5...
Bg7 {[%clk 0:02:55.9]} 6. Bb2 {[%clk 0:03:02]} 6... O-O {[%clk 0:02:56.2]} 7.
Bg2 {[%clk 0:03:02.6]} 7... Bf5 {[%clk 0:02:54]} 8. O-O {[%clk 0:03:02.8]} 8...
Nbd7 {[%clk 0:02:53.5]} 9. Nc3 {[%clk 0:03:01.6]} 9... Ne4 {[%clk 0:02:51.6]}
10. Nh4 {[%clk 0:02:59.8]} 10... Nxc3 {[%clk 0:02:40.7]} 11. Bxc3 {[%clk
0:03:00.7]} 11... Be6 {[%clk 0:02:32.8]} 12. cxd5 {[%clk 0:02:57.2]} 12... cxd5
{[%clk 0:02:32]} 13. f4 {[%clk 0:02:43.7]} 13... Rc8 {[%clk 0:02:07.4]} 14. Bb2
{[%clk 0:02:36.4]} 14... f5 {[%clk 0:01:59.7]} 15. Nf3 {[%clk 0:02:36.5]} 15...
Nf6 {[%clk 0:01:57.8]} 16. Ne5 {[%clk 0:02:26.9]} 16... Ne4 {[%clk 0:01:53.2]}
17. Qd3 {[%clk 0:02:19.2]} 17... Qa5 {[%clk 0:01:43.1]} 18. a3 {[%clk
0:02:07.1]} 18... Qd2 {[%clk 0:01:31.5]} 19. Bc1 {[%clk 0:01:12.6]} 19... Qc2
{[%clk 0:00:54.4]} 20. Be3 {[%clk 0:00:47.3]} 20... Rc3 {[%clk 0:00:47.1]} 21.
Qxc2 {[%clk 0:00:47.3]} 21... Rxc2 {[%clk 0:00:48]} 22. Bf3 {[%clk 0:00:47.6]}
22... Rfc8 {[%clk 0:00:47.3]} 23. Rac1 {[%clk 0:00:46.2]} 23... R2c3 {[%clk
0:00:40.2]} 24. Bxe4 {[%clk 0:00:33.2]} 24... dxe4 {[%clk 0:00:37.6]} 25. Kf2
{[%clk 0:00:30]} 25... Bxb3 {[%clk 0:00:33.6]} 26. Rxc3 {[%clk 0:00:20.5]} 26...
Rxc3 {[%clk 0:00:34.5]} 27. Rb1 {[%clk 0:00:21.2]} 27... Bd5 {[%clk 0:00:31.5]}
28. Rb5 {[%clk 0:00:20.8]} 28... e6 {[%clk 0:00:30.5]} 29. a4 {[%clk 0:00:20.9]}
29... Bf8 {[%clk 0:00:24]} 30. Rb2 {[%clk 0:00:14.5]} 30... Ra3 {[%clk
0:00:23.9]} 31. Nd7 {[%clk 0:00:10.2]} 31... Rxa4 {[%clk 0:00:22.1]} 32. Nc5
{[%clk 0:00:10.5]} 32... Bxc5 {[%clk 0:00:21]} 33. dxc5 {[%clk 0:00:11.4]} 33...
a5 {[%clk 0:00:21.1]} 34. Bd2 {[%clk 0:00:08]} 34... Ra3 {[%clk 0:00:17.8]} 35.
Rb5 {[%clk 0:00:08.2]} 35... a4 {[%clk 0:00:18.1]} 36. Ra5 {[%clk 0:00:08.7]}
36... Kf7 {[%clk 0:00:17.6]} 37. Ra7 {[%clk 0:00:08.1]} 37... Ke8 {[%clk
0:00:16.2]} 38. Be3 {[%clk 0:00:08]} 38... Kd7 {[%clk 0:00:16.2]} 39. Bd4 {[%clk
0:00:08.1]} 39... Kc6 {[%clk 0:00:16.5]} 40. e3 {[%clk 0:00:07.3]} 40... Ra2+
{[%clk 0:00:16.8]} 41. Kg1 {[%clk 0:00:07.7]} 41... a3 {[%clk 0:00:17.3]} 42.
Ra8 {[%clk 0:00:06.6]} 42... Kb5 {[%clk 0:00:16.4]} 43. h3 {[%clk 0:00:05.4]}
43... Kc4 {[%clk 0:00:16.4]} 44. g4 {[%clk 0:00:05.5]} 44... Kb3 {[%clk
0:00:16.3]} 45. gxf5 {[%clk 0:00:05.4]} 45... gxf5 {[%clk 0:00:15.4]} 46. Rh8
{[%clk 0:00:06.2]} 46... Rc2 {[%clk 0:00:13.2]} 47. Rxh7 {[%clk 0:00:06.7]}
47... a2 {[%clk 0:00:13.7]} 48. h4 {[%clk 0:00:07]} 48... Rb2 {[%clk 0:00:13.2]}
49. Bxb2 {[%clk 0:00:02.9]} 49... Kxb2 {[%clk 0:00:14.1]} 50. Kg2 {[%clk
0:00:02.9]} 50... a1=Q {[%clk 0:00:14.4]} 51. Kg3 {[%clk 0:00:03.5]} 51... Qg1+
{[%clk 0:00:13.8]} 52. Kh3 {[%clk 0:00:04.2]} 52... Qxe3+ {[%clk 0:00:13.3]} 0-1

[Event "Late-Titled-Tuesday-Blitz-February-20-2024"]
[Site "Chess.com"]
[Date "2024.02.20"]
[Round "4"]
[White "gshwbedhkhd"]
[Black "czasnaszachy"]
[Result "1/2-1/2"]
[WhiteElo "2608"]
[BlackElo "2416"]
[TimeControl "180+1"]
[EndTime "14:39:13 PST"]
[Termination "Game drawn - insufficient material"]

1. f4 {[%clk 0:03:00.9]} 1... d5 {[%clk 0:02:57.9]} 2. Nf3 {[%clk 0:02:59.7]}
2... g6 {[%clk 0:02:57.9]} 3. g3 {[%clk 0:02:59.6]} 3... Bg7 {[%clk 0:02:58.4]}
4. Bg2 {[%clk 0:03:00.3]} 4... Nf6 {[%clk 0:02:55.1]} 5. O-O {[%clk 0:03:00.1]}
5... O-O {[%clk 0:02:55.2]} 6. d3 {[%clk 0:03:00.7]} 6... b5 {[%clk 0:02:55.4]}
7. Qe1 {[%clk 0:03:00.4]} 7... Bb7 {[%clk 0:02:55.6]} 8. Na3 {[%clk 0:02:57]}
8... a6 {[%clk 0:02:51]} 9. c3 {[%clk 0:02:56.4]} 9... c5 {[%clk 0:02:51.1]} 10.
Nc2 {[%clk 0:02:51.7]} 10... Nbd7 {[%clk 0:02:45.2]} 11. a4 {[%clk 0:02:49.9]}
11... Qb6 {[%clk 0:02:40.6]} 12. Kh1 {[%clk 0:02:46]} 12... Ne8 {[%clk
0:02:33.9]} 13. e4 {[%clk 0:02:43.3]} 13... c4 {[%clk 0:02:28.7]} 14. Be3 {[%clk
0:02:39.9]} 14... Qc7 {[%clk 0:02:25.1]} 15. Nb4 {[%clk 0:02:26.6]} 15... dxe4
{[%clk 0:02:20.2]} 16. dxe4 {[%clk 0:02:26.8]} 16... Bxe4 {[%clk 0:02:19]} 17.
axb5 {[%clk 0:02:25.1]} 17... axb5 {[%clk 0:02:17.5]} 18. Rxa8 {[%clk
0:02:24.4]} 18... Bxa8 {[%clk 0:02:17.4]} 19. Nd4 {[%clk 0:02:24.7]} 19... Bxg2+
{[%clk 0:02:16.3]} 20. Kxg2 {[%clk 0:02:25.6]} 20... Nd6 {[%clk 0:02:13.4]} 21.
g4 {[%clk 0:02:22.4]} 21... Nc5 {[%clk 0:02:07.7]} 22. f5 {[%clk 0:02:17.6]}
22... Nd3 {[%clk 0:02:03.1]} 23. Nxd3 {[%clk 0:02:13.8]} 23... cxd3 {[%clk
0:02:03.5]} 24. Qd2 {[%clk 0:02:14]} 24... Qb7+ {[%clk 0:01:36.9]} 25. Kh3
{[%clk 0:02:09.9]} 25... gxf5 {[%clk 0:01:21.4]} 26. gxf5 {[%clk 0:02:07.3]}
26... Qe4 {[%clk 0:01:09.6]} 27. Rf4 {[%clk 0:02:05.6]} 27... Qh1 {[%clk
0:01:09.2]} 28. Qxd3 {[%clk 0:02:04.1]} 28... Be5 {[%clk 0:01:02.7]} 29. Rg4+
{[%clk 0:01:57.5]} 29... Kh8 {[%clk 0:01:02.9]} 30. Qe2 {[%clk 0:01:55.5]} 30...
Rg8 {[%clk 0:00:49.2]} 31. Rxg8+ {[%clk 0:01:54]} 31... Kxg8 {[%clk 0:00:49.5]}
32. Nf3 {[%clk 0:01:53.5]} 32... Bf6 {[%clk 0:00:46.6]} 33. Nd2 {[%clk
0:01:38.7]} 33... Qd5 {[%clk 0:00:35.9]} 34. Qg4+ {[%clk 0:01:35.6]} 34... Kh8
{[%clk 0:00:36.2]} 35. Nf3 {[%clk 0:01:26.6]} 35... Nxf5 {[%clk 0:00:31.8]} 36.
Bg5 {[%clk 0:01:23.8]} 36... Bxg5 {[%clk 0:00:26.9]} 37. Nxg5 {[%clk 0:01:24.7]}
37... Qd3+ {[%clk 0:00:25]} 38. Nf3 {[%clk 0:01:19.5]} 38... Qf1+ {[%clk
0:00:23.5]} 39. Qg2 {[%clk 0:01:18.2]} 39... Qxg2+ {[%clk 0:00:22.3]} 40. Kxg2
{[%clk 0:01:19.1]} 40... Ne3+ {[%clk 0:00:22.7]} 41. Kf2 {[%clk 0:01:18.5]}
41... Nd1+ {[%clk 0:00:23.6]} 42. Ke2 {[%clk 0:01:16.4]} 42... Nxb2 {[%clk
0:00:24.5]} 43. Nd4 {[%clk 0:01:16.7]} 43... Na4 {[%clk 0:00:20.6]} 44. Nxb5
{[%clk 0:01:15.1]} 44... Kg7 {[%clk 0:00:21.1]} 45. c4 {[%clk 0:01:13.8]} 45...
f5 {[%clk 0:00:21.1]} 46. Kd3 {[%clk 0:01:12.9]} 46... e5 {[%clk 0:00:20.7]} 47.
Nd6 {[%clk 0:01:12.1]} 47... Kf6 {[%clk 0:00:20.1]} 48. Nb7 {[%clk 0:01:12.1]}
48... e4+ {[%clk 0:00:18.6]} 49. Kd4 {[%clk 0:01:11.9]} 49... Kg5 {[%clk
0:00:19]} 50. c5 {[%clk 0:01:11.5]} 50... Kf4 {[%clk 0:00:18.9]} 51. c6 {[%clk
0:01:10]} 51... Nb6 {[%clk 0:00:18.4]} 52. Kc5 {[%clk 0:01:05.2]} 52... Nc8
{[%clk 0:00:18.4]} 53. Nd6 {[%clk 0:01:02.8]} 53... Ne7 {[%clk 0:00:17.8]} 54.
Nc4 {[%clk 0:01:00.7]} 54... e3 {[%clk 0:00:17.5]} 55. Kd6 {[%clk 0:00:54.9]}
55... e2 {[%clk 0:00:16.9]} 56. Kxe7 {[%clk 0:00:53.3]} 56... e1=Q+ {[%clk
0:00:17]} 57. Kd7 {[%clk 0:00:53.8]} 57... Qd1+ {[%clk 0:00:16.1]} 58. Nd6
{[%clk 0:00:54]} 58... Qa4 {[%clk 0:00:15.7]} 59. Nb7 {[%clk 0:00:48.1]} 59...
Kg4 {[%clk 0:00:14.9]} 60. Kd6 {[%clk 0:00:48.1]} 60... Qa3+ {[%clk 0:00:13]}
61. Kd7 {[%clk 0:00:47.9]} 61... Qd3+ {[%clk 0:00:12.5]} 62. Nd6 {[%clk
0:00:47.8]} 62... f4 {[%clk 0:00:11.5]} 63. c7 {[%clk 0:00:48.2]} 63... Qa6
{[%clk 0:00:09.8]} 64. c8=Q {[%clk 0:00:46.1]} 64... Qxc8+ {[%clk 0:00:10]} 65.
Kxc8 {[%clk 0:00:47]} 65... f3 {[%clk 0:00:10.5]} 66. Ne4 {[%clk 0:00:47]} 66...
Kh3 {[%clk 0:00:10.1]} 67. Kd7 {[%clk 0:00:47.5]} 67... Kxh2 {[%clk 0:00:09.5]}
68. Ke6 {[%clk 0:00:48]} 68... h5 {[%clk 0:00:09.2]} 69. Kf5 {[%clk 0:00:48.5]}
69... h4 {[%clk 0:00:09.2]} 70. Kg4 {[%clk 0:00:47.6]} 70... Kg2 {[%clk
0:00:09.6]} 71. Kxh4 {[%clk 0:00:47]} 71... f2 {[%clk 0:00:10]} 72. Nxf2 {[%clk
0:00:47.2]} 1/2-1/2

[Event "Late-Titled-Tuesday-Blitz-February-20-2024"]
[Site "Chess.com"]
[Date "2024.02.20"]
[Round "4"]
[White "jinxy2009"]
[Black "dolynachess"]
[Result "0-1"]
[WhiteElo "2186"]
[BlackElo "2444"]
[TimeControl "180+1"]
[EndTime "14:39:13 PST"]
[Termination "dolynachess won on time"]

1. e4 {[%clk 0:02:57.6]} 1... c5 {[%clk 0:02:59.5]} 2. Nf3 {[%clk 0:02:56.6]}
2... d6 {[%clk 0:02:59.8]} 3. d4 {[%clk 0:02:56]} 3... cxd4 {[%clk 0:03:00.7]}
4. Nxd4 {[%clk 0:02:56.6]} 4... Nf6 {[%clk 0:03:01.6]} 5. Nc3 {[%clk 0:02:56.6]}
5... g6 {[%clk 0:03:02.5]} 6. Be3 {[%clk 0:02:56.3]} 6... Nc6 {[%clk 0:03:02.6]}
7. f3 {[%clk 0:02:54.1]} 7... h5 {[%clk 0:03:02.4]} 8. Qd2 {[%clk 0:02:44.9]}
8... Nxd4 {[%clk 0:03:01.5]} 9. Qxd4 {[%clk 0:02:41.1]} 9... Bg7 {[%clk
0:02:32.5]} 10. Qd2 {[%clk 0:02:34.7]} 10... O-O {[%clk 0:02:22]} 11. O-O-O
{[%clk 0:02:24.4]} 11... Be6 {[%clk 0:02:21.3]} 12. Kb1 {[%clk 0:02:14.9]} 12...
Qc7 {[%clk 0:02:09.5]} 13. Be2 {[%clk 0:02:12.9]} 13... Rfc8 {[%clk 0:02:09.4]}
14. h4 {[%clk 0:02:01.9]} 14... Qa5 {[%clk 0:02:07.2]} 15. g4 {[%clk 0:01:52.5]}
15... Rxc3 {[%clk 0:01:35.6]} 16. Qxc3 {[%clk 0:01:30.5]} 16... Qxa2+ {[%clk
0:01:21.1]} 17. Kc1 {[%clk 0:01:30.4]} 17... Qa1+ {[%clk 0:01:04.7]} 18. Kd2
{[%clk 0:01:29.3]} 18... Nxe4+ {[%clk 0:01:04.6]} 19. fxe4 {[%clk 0:01:26.3]}
19... Bxc3+ {[%clk 0:01:03.9]} 20. bxc3 {[%clk 0:01:26.1]} 20... Qa4 {[%clk
0:00:52.9]} 21. gxh5 {[%clk 0:01:24.3]} 21... gxh5 {[%clk 0:00:39.1]} 22. Rhg1+
{[%clk 0:01:13.9]} 22... Kh8 {[%clk 0:00:19.8]} 23. Rg5 {[%clk 0:00:52.6]} 23...
Bg4 {[%clk 0:00:19.3]} 24. Bxg4 {[%clk 0:00:45]} 24... hxg4 {[%clk 0:00:20.2]}
25. Rxg4 {[%clk 0:00:20.3]} 25... Rg8 {[%clk 0:00:17.3]} 26. Rdg1 {[%clk
0:00:16.6]} 26... Rxg4 {[%clk 0:00:16.4]} 27. Rxg4 {[%clk 0:00:17.5]} 27... f6
{[%clk 0:00:16.2]} 28. h5 {[%clk 0:00:17]} 28... Qc4 {[%clk 0:00:13.6]} 29. h6
{[%clk 0:00:16.8]} 29... a5 {[%clk 0:00:13.1]} 30. Bd4 {[%clk 0:00:05.7]} 30...
a4 {[%clk 0:00:12.5]} 31. Rg7 {[%clk 0:00:04.8]} 31... Qe6 {[%clk 0:00:10.8]}
32. Rg1 {[%clk 0:00:04]} 32... b5 {[%clk 0:00:09.5]} 33. Rb1 {[%clk 0:00:04]}
33... Qc4 {[%clk 0:00:08.8]} 34. Rb4 {[%clk 0:00:03.4]} 34... Qc6 {[%clk
0:00:08]} 35. Ke3 {[%clk 0:00:02.8]} 35... Kh7 {[%clk 0:00:08.3]} 36. Rb1 {[%clk
0:00:02.5]} 36... Kxh6 {[%clk 0:00:08.7]} 37. Rh1+ {[%clk 0:00:02.6]} 37... Kg6
{[%clk 0:00:09.3]} 38. Rg1+ {[%clk 0:00:03]} 38... Kf7 {[%clk 0:00:09.9]} 39.
Rh1 {[%clk 0:00:03.4]} 39... Ke6 {[%clk 0:00:10.3]} 40. Rb1 {[%clk 0:00:01.9]}
40... Qc4 {[%clk 0:00:10.6]} 41. Ra1 {[%clk 0:00:02.3]} 41... Kd7 {[%clk
0:00:09.6]} 42. Rb1 {[%clk 0:00:02.7]} 42... Kc6 {[%clk 0:00:09.9]} 43. Rb4
{[%clk 0:00:02.9]} 43... Qg8 {[%clk 0:00:10.1]} 44. Kd3 {[%clk 0:00:03.1]} 44...
Qg3+ {[%clk 0:00:10.2]} 45. Kd2 {[%clk 0:00:03.1]} 45... Qg2+ {[%clk 0:00:11]}
46. Kd3 {[%clk 0:00:02.9]} 46... Qf3+ {[%clk 0:00:11.1]} 47. Be3 {[%clk
0:00:02]} 47... e6 {[%clk 0:00:10.7]} 48. c4 {[%clk 0:00:01.6]} 48... Qf1+
{[%clk 0:00:09.8]} 49. Kc3 {[%clk 0:00:01.1]} 49... bxc4 {[%clk 0:00:08.8]} 0-1

[Event "Late-Titled-Tuesday-Blitz-February-20-2024"]
[Site "Chess.com"]
[Date "2024.02.20"]
[Round "4"]
[White "Hui_Li_Macau"]
[Black "akanga001"]
[Result "0-1"]
[WhiteElo "2343"]
[BlackElo "2036"]
[TimeControl "180+1"]
[EndTime "14:39:16 PST"]
[Termination "akanga001 won on time"]

1. e4 {[%clk 0:03:00.9]} 1... e6 {[%clk 0:02:59.4]} 2. d4 {[%clk 0:03:00.6]}
2... d5 {[%clk 0:03:00]} 3. Nd2 {[%clk 0:03:01.1]} 3... Be7 {[%clk 0:02:59.5]}
4. Bd3 {[%clk 0:02:59]} 4... Nf6 {[%clk 0:02:59]} 5. e5 {[%clk 0:02:58.6]} 5...
Nfd7 {[%clk 0:02:58.7]} 6. c3 {[%clk 0:02:59]} 6... c5 {[%clk 0:02:58.6]} 7. Ne2
{[%clk 0:02:59.2]} 7... Nc6 {[%clk 0:02:58.4]} 8. O-O {[%clk 0:02:58]} 8... a5
{[%clk 0:02:57.9]} 9. f4 {[%clk 0:02:55.1]} 9... cxd4 {[%clk 0:02:57.3]} 10.
cxd4 {[%clk 0:02:55.1]} 10... Qb6 {[%clk 0:02:57]} 11. Nf3 {[%clk 0:02:54.9]}
11... O-O {[%clk 0:02:54.3]} 12. Kh1 {[%clk 0:02:35.1]} 12... f6 {[%clk
0:02:52.5]} 13. Nc3 {[%clk 0:02:06.1]} 13... Qd8 {[%clk 0:02:17.2]} 14. Be3
{[%clk 0:01:53.1]} 14... Nb6 {[%clk 0:02:15.1]} 15. b3 {[%clk 0:01:35.8]} 15...
Bd7 {[%clk 0:02:12.8]} 16. exf6 {[%clk 0:01:14.8]} 16... Bxf6 {[%clk 0:02:11.2]}
17. Ne5 {[%clk 0:01:13.9]} 17... Be8 {[%clk 0:01:58.7]} 18. Qg4 {[%clk
0:01:04.5]} 18... Qe7 {[%clk 0:01:50.6]} 19. Rae1 {[%clk 0:00:56.6]} 19... Nb4
{[%clk 0:01:47.4]} 20. Bb1 {[%clk 0:00:55.2]} 20... Rc8 {[%clk 0:01:44.1]} 21.
Bd2 {[%clk 0:00:39.1]} 21... Nc6 {[%clk 0:01:21.6]} 22. Be3 {[%clk 0:00:31.2]}
22... Nb4 {[%clk 0:01:20.2]} 23. Bd2 {[%clk 0:00:31.2]} 23... Nc6 {[%clk
0:01:19.8]} 24. Ne2 {[%clk 0:00:25.7]} 24... h5 {[%clk 0:01:09.5]} 25. Qg3
{[%clk 0:00:24.1]} 25... Bxe5 {[%clk 0:01:09]} 26. fxe5 {[%clk 0:00:20.5]} 26...
Bf7 {[%clk 0:01:00.5]} 27. Qg5 {[%clk 0:00:13.9]} 27... Qxg5 {[%clk 0:00:55.6]}
28. Bxg5 {[%clk 0:00:14.8]} 28... a4 {[%clk 0:00:46.5]} 29. b4 {[%clk 0:00:09]}
29... Rfe8 {[%clk 0:00:41.6]} 30. Bd2 {[%clk 0:00:06.9]} 30... Nc4 {[%clk
0:00:40.4]} 31. Bc1 {[%clk 0:00:05]} 31... a3 {[%clk 0:00:39.1]} 32. Nc3 {[%clk
0:00:04.7]} 32... Nxb4 {[%clk 0:00:38.8]} 33. Nb5 {[%clk 0:00:01.7]} 33... Rc6
{[%clk 0:00:27]} 34. Nxa3 {[%clk 0:00:01.8]} 34... Nxa3 {[%clk 0:00:17]} 35.
Bxa3 {[%clk 0:00:02.7]} 35... Nc2 {[%clk 0:00:16.7]} 36. Bxc2 {[%clk 0:00:02]}
36... Rxc2 {[%clk 0:00:16.2]} 37. Bd6 {[%clk 0:00:02.2]} 37... Rxa2 {[%clk
0:00:15.6]} 38. h3 {[%clk 0:00:02.3]} 38... Bg6 {[%clk 0:00:14]} 39. Rc1 {[%clk
0:00:01.8]} 39... Be4 {[%clk 0:00:13.3]} 40. Rg1 {[%clk 0:00:01.6]} 40... Rea8
{[%clk 0:00:11.2]} 41. Rc7 {[%clk 0:00:01.8]} 41... Rd2 {[%clk 0:00:08.3]} 42.
Rxb7 {[%clk 0:00:01.3]} 42... Raa2 {[%clk 0:00:07.6]} 0-1